bitfinex/quotes_BTCUSD_20250927
["timestamp","ask_amount","ask_price","bid_price","bid_amount"]
[1758968918229,2.57576963,109600.0,109590.0,0.08602505]
[1758968919907,2.80523753,109600.0,109590.0,0.08602505]
[1758968926758,2.72886821,109600.0,109590.0,0.08602505]
[1758968927718,2.44426821,109600.0,109590.0,0.08800505]
[1758968927855,2.72882821,109600.0,109590.0,0.08800505]
[1758968929556,2.72882821,109600.0,109590.0,0.09105505]
[1758968930074,2.73525724,109600.0,109590.0,0.09105505]
[1758968940339,2.45069724,109600.0,109590.0,0.09105505]
[1758968940539,2.42924005,109600.0,109590.0,0.09105505]
[1758968941799,2.14468005,109600.0,109590.0,0.09105505]
[1758968942025,2.42924005,109600.0,109590.0,0.09105505]
[1758968943151,2.14468005,109600.0,109590.0,0.09105505]
[1758968943366,2.42924005,109600.0,109590.0,0.09105505]
[1758968943967,2.14468005,109600.0,109590.0,0.09105505]
[1758968944172,2.42924005,109600.0,109590.0,0.09105505]
[1758968944927,2.42924005,109600.0,109590.0,0.08800505]
[1758968946854,2.73525724,109600.0,109590.0,0.08800505]
[1758968949893,2.73525841,109600.0,109590.0,0.08800505]
[1758968951109,2.42924122,109600.0,109590.0,0.08800505]
[1758968953480,2.23907221,109600.0,109590.0,0.08800505]
[1758968953682,2.42156919,109600.0,109590.0,0.08800505]
[1758968954238,2.41513899,109600.0,109590.0,0.08800505]
[1758968954484,2.4215697,109600.0,109590.0,0.08800505]
[1758968955195,2.41492614,109600.0,109590.0,0.08800505]
[1758968956716,2.41492614,109600.0,109590.0,0.08602505]
[1758968958641,2.41492673,109600.0,109590.0,0.08602505]
[1758968962581,2.13036673,109600.0,109590.0,0.08602505]
[1758968962790,2.41488673,109600.0,109590.0,0.08602505]
[1758968963181,2.13036673,109600.0,109590.0,0.08602505]
[1758968963417,2.41488673,109600.0,109590.0,0.08602505]
[1758968966300,2.13036673,109600.0,109590.0,0.08602505]
[1758968966505,2.41488673,109600.0,109590.0,0.08602505]
[1758968968210,2.13036673,109600.0,109590.0,0.08602505]
[1758968968441,2.41484673,109600.0,109590.0,0.08602505]
[1758968970150,2.4148469,109600.0,109590.0,0.08602505]
[1758968971463,2.40841619,109600.0,109590.0,0.08602505]
[1758968971692,2.4148471,109600.0,109590.0,0.08602505]
[1758968972709,2.1303671,109600.0,109590.0,0.08602505]
[1758968973036,2.4148471,109600.0,109590.0,0.08602505]
[1758968974575,2.1303671,109600.0,109590.0,0.08602505]
[1758968974801,2.4148471,109600.0,109590.0,0.08602505]
[1758968975732,1.82434991,109600.0,109590.0,0.08810505]
[1758968975915,2.41484622,109600.0,109590.0,0.09126505]
[1758968976897,2.72086341,109600.0,109590.0,0.09126505]
[1758968982427,2.52258689,109600.0,109590.0,0.09126505]
[1758968986708,2.36956669,109600.0,109590.0,0.09126505]
[1758968987691,2.36956621,109600.0,109590.0,0.09126505]
[1758968995958,2.20088977,109600.0,109590.0,0.09126505]
[1758968996531,2.54203073,109600.0,109590.0,0.09126505]
[1758969003656,2.46271273,109600.0,109590.0,0.09126505]
[1758969006535,1.23606455,109600.0,109590.0,0.09126505]
[1758969006752,1.97951873,109600.0,109590.0,0.09126505]
[1758969006952,1.97951873,109600.0,109590.0,0.08810505]
[1758969009631,1.97951873,109600.0,109590.0,0.09105505]
[1758969009929,1.97951949,109600.0,109590.0,0.09105505]
[1758969013111,1.69507949,109600.0,109590.0,0.09105505]
[1758969013293,1.75107149,109600.0,109590.0,0.09105505]
[1758969019671,1.75107222,109600.0,109590.0,0.09105505]
[1758969020623,1.29205804,109600.0,109590.0,0.09105505]
[1758969020820,1.22258122,109600.0,109590.0,0.09105505]
[1758969021058,1.50698122,109600.0,109590.0,0.09105505]
[1758969021275,1.37686122,109600.0,109590.0,0.09105505]
[1758969022205,1.09246122,109600.0,109590.0,0.09105505]
[1758969022458,1.28743022,109600.0,109590.0,0.09105505]
[1758969031298,1.11690623,109600.0,109590.0,0.09105505]
[1758969040147,0.94443451,109600.0,109590.0,0.09105505]
[1758969040371,1.12693149,109600.0,109590.0,0.09105505]
[1758969043859,1.14754592,109600.0,109590.0,0.09105505]
[1758969046609,1.08938457,109600.0,109590.0,0.09105505]
[1758969049050,1.08938457,109600.0,109590.0,0.08810505]
[1758969050304,1.08938457,109600.0,109590.0,0.08602505]
[1758969050957,1.08938457,109600.0,109590.0,0.08807505]
[1758969051346,1.08938457,109600.0,109590.0,0.09130505]
[1758969051585,0.78340998,109600.0,109590.0,0.09130505]
[1758969051791,1.08938457,109600.0,109590.0,0.09130505]
[1758969060507,1.09795926,109600.0,109590.0,0.09130505]
[1758969064278,0.81355926,109600.0,109590.0,0.09130505]
[1758969064495,1.09787926,109600.0,109590.0,0.09130505]
[1758969070515,1.09787926,109600.0,109590.0,0.08807505]
[1758969071179,0.79190467,109600.0,109590.0,0.08807505]
[1758969071363,1.09787926,109600.0,109590.0,0.08807505]
[1758969072142,1.10431023,109600.0,109590.0,0.08807505]
[1758969073759,1.09573554,109600.0,109590.0,0.08807505]
[1758969073997,1.10431013,109600.0,109590.0,0.08807505]
[1758969078222,1.10431013,109600.0,109590.0,0.09114505]
[1758969078897,0.79833554,109600.0,109590.0,0.09114505]
[1758969079107,1.10431013,109600.0,109590.0,0.09114505]
[1758969082394,0.89596543,109600.0,109590.0,0.09114505]
[1758969082592,1.37624775,109600.0,109590.0,0.09114505]
[1758969082845,1.35040073,109600.0,109590.0,0.09114505]
[1758969083607,1.35040073,109600.0,109590.0,0.13426421]
[1758969083825,1.63472073,109600.0,109590.0,0.13426421]
[1758969085022,1.62798857,109600.0,109590.0,0.13426421]
[1758969085512,1.50801257,109600.0,109590.0,0.13426421]
[1758969086756,1.39476957,109600.0,109590.0,0.13426421]
[1758969087605,0.80447498,109600.0,109590.0,0.13426421]
[1758969087826,0.2056551,109610.0,109600.0,0.03503]
[1758969088017,0.1824651,109610.0,109600.0,0.0556501]
[1758969088189,0.1824651,109610.0,109600.0,0.0785701]
[1758969088392,0.48843969,109610.0,109600.0,0.0785701]
[1758969088747,0.48843969,109610.0,109600.0,0.39030901]
[1758969088929,0.49143969,109610.0,109600.0,0.39030901]
[1758969089105,0.49143969,109610.0,109600.0,0.10602901]
[1758969089308,0.49243969,109610.0,109600.0,0.10602901]
[1758969089516,0.49243969,109610.0,109600.0,0.39030901]
[1758969089918,0.49143969,109610.0,109600.0,0.39030901]
[1758969090119,0.5057536,109610.0,109600.0,0.39130901]
[1758969090326,0.5027536,109610.0,109600.0,0.39130901]
[1758969090858,0.5027536,109610.0,109600.0,0.39430901]
[1758969094587,0.50917047,109610.0,109600.0,0.39430901]
[1758969100370,0.50917047,109610.0,109600.0,0.11002901]
[1758969100976,0.50917047,109610.0,109600.0,0.39430901]
[1758969107516,0.20319588,109610.0,109600.0,0.39430901]
[1758969107730,1.77901047,109610.0,109600.0,0.08940891]
[1758969108271,1.77901047,109610.0,109600.0,0.06195]
[1758969108686,1.93198396,109610.0,109600.0,0.06195]
[1758969109311,2.16761596,109610.0,109600.0,0.06195]
[1758969112981,1.88337596,109610.0,109600.0,0.06195]
[1758969113179,2.16761596,109610.0,109600.0,0.06195]
[1758969114937,1.88337596,109610.0,109600.0,0.06195]
[1758969115227,2.16761596,109610.0,109600.0,0.06195]
[1758969126585,2.16762435,109610.0,109600.0,0.06195]
[1758969126922,2.16762421,109610.0,109600.0,0.06195]
[1758969130962,2.1533103,109610.0,109600.0,0.06195]
[1758969135288,2.1618801,109610.0,109600.0,0.06195]
[1758969136901,2.1618801,109610.0,109600.0,0.06398]
[1758969137172,2.1618801,109610.0,109600.0,0.06691]
[1758969137862,2.1618801,109610.0,109600.0,0.06398]
[1758969139744,2.1618801,109610.0,109600.0,0.06691]
[1758969144036,1.93240606,109610.0,109600.0,0.06691]
[1758969144189,2.1618801,109610.0,109600.0,0.06691]
[1758969159337,2.16188298,109610.0,109600.0,0.06691]
[1758969159695,1.4186949,109610.0,109600.0,0.06691]
[1758969159907,1.1733969,109610.0,109600.0,0.06691]
[1758969160114,1.36044794,109610.0,109600.0,0.06691]
[1758969160310,1.07620794,109610.0,109600.0,0.06691]
[1758969160580,1.58996198,109610.0,109600.0,0.06691]
[1758969160909,1.589963,109610.0,109600.0,0.06691]
[1758969162102,1.589963,109610.0,109600.0,0.09436891]
[1758969163668,1.13101492,109610.0,109600.0,0.09436891]
[1758969163884,1.589963,109610.0,109600.0,0.09436891]
[1758969165047,1.590003,109610.0,109600.0,0.09436891]
[1758969168485,1.305683,109610.0,109600.0,0.09436891]
[1758969168699,1.589963,109610.0,109600.0,0.09436891]
[1758969169493,1.305683,109610.0,109600.0,0.09436891]
[1758969169700,1.589963,109610.0,109600.0,0.09436891]
[1758969170674,1.43693263,109610.0,109600.0,0.09436891]
[1758969171043,1.37594963,109610.0,109600.0,0.09436891]
[1758969171237,1.28732863,109610.0,109600.0,0.09436891]
[1758969171451,1.23174563,109610.0,109600.0,0.09436891]
[1758969172162,1.18854163,109610.0,109600.0,0.09436891]
[1758969177236,0.90430163,109610.0,109600.0,0.09436891]
[1758969177407,1.00525563,109610.0,109600.0,0.09436891]
[1758969178402,0.72093563,109610.0,109600.0,0.09436891]
[1758969178639,1.00525563,109610.0,109600.0,0.09436891]
[1758969179275,0.99668481,109610.0,109600.0,0.09436891]
[1758969179675,0.99676481,109610.0,109600.0,0.09436891]
[1758969181624,0.67833081,109610.0,109600.0,0.09436891]
[1758969181825,0.96269081,109610.0,109600.0,0.09436891]
[1758969184810,0.96269081,109610.0,109600.0,0.09143891]
[1758969185223,0.6567731,109610.0,109600.0,0.09446891]
[1758969185580,0.96269081,109610.0,109600.0,0.09446891]
[1758969186488,0.74501859,109610.0,109600.0,0.09446891]
[1758969186726,0.77274281,109610.0,109600.0,0.09143891]
[1758969186919,1.79665881,109610.0,109600.0,0.1348858]
[1758969187135,1.60664881,109610.0,109600.0,0.1348858]
[1758969187595,1.30837581,109610.0,109600.0,0.1379158]
[1758969187807,1.20118081,109610.0,109600.0,0.1379158]
[1758969188008,1.10118081,109610.0,109600.0,0.1379158]
[1758969188797,1.10118081,109610.0,109600.0,0.1348858]
[1758969193877,1.10118081,109610.0,109600.0,0.1379458]
[1758969194454,0.81682081,109610.0,109600.0,0.1379458]
[1758969194747,0.77282281,109610.0,109600.0,0.1379458]
[1758969195537,0.48838281,109610.0,109600.0,0.1379458]
[1758969196125,0.1824651,109610.0,109600.0,0.15619397]
[1758969196937,0.48838281,109610.0,109600.0,0.15619397]
[1758969197769,0.22967033,109620.0,109610.0,0.37503]
[1758969197970,0.19157087,109620.0,109610.0,0.67985237]
[1758969198245,0.19157087,109620.0,109610.0,0.70408237]
[1758969198453,0.55106967,109630.0,109620.0,0.03503]
[1758969198611,1.71961128,109630.0,109620.0,0.04011]
[1758969198811,1.71961128,109630.0,109620.0,0.10778689]
[1758969199197,1.06429528,109630.0,109620.0,0.13224186]
[1758969199434,0.75837757,109630.0,109620.0,0.13224186]
[1758969199595,1.06429528,109630.0,109620.0,0.13224186]
[1758969199794,1.06729528,109630.0,109620.0,0.13224186]
[1758969200037,1.06729528,109630.0,109620.0,0.13024186]
[1758969200867,1.08360687,109630.0,109620.0,0.13024186]
[1758969201240,0.79900687,109630.0,109620.0,0.13024186]
[1758969201444,1.08360687,109630.0,109620.0,0.13024186]
[1758969205494,0.24742416,109630.0,109620.0,0.1484867]
[1758969205889,0.24742416,109630.0,109620.0,0.47024186]
[1758969206136,0.22669196,109630.0,109620.0,0.47024186]
[1758969206549,0.22469196,109630.0,109620.0,0.47024186]
[1758969206691,0.22169196,109630.0,109620.0,0.47024186]
[1758969207108,0.21786831,109630.0,109620.0,0.50639376]
[1758969207322,0.0354365,109630.0,109620.0,0.50639376]
[1758969207527,0.18243181,109630.0,109620.0,0.50639376]
[1758969207944,1.05625854,109640.0,109620.0,0.50639376]
[1758969208302,0.18243181,109630.0,109620.0,0.47587879]
[1758969208842,0.18243181,109630.0,109620.0,0.47882879]
[1758969209047,0.18243181,109630.0,109620.0,0.50027946]
[1758969209852,0.18243181,109630.0,109620.0,0.50327946]
[1758969211802,0.78085506,109640.0,109620.0,0.50327946]
[1758969211941,0.18243181,109630.0,109620.0,0.50032946]
[1758969212353,0.18243181,109630.0,109620.0,0.75763879]
[1758969212591,0.18243181,109630.0,109620.0,0.78503946]
[1758969213620,0.18243181,109630.0,109620.0,0.78803946]
[1758969220174,0.78085506,109640.0,109620.0,0.78803946]
[1758969220378,0.18243181,109630.0,109620.0,0.78508946]
[1758969220568,0.76578301,109640.0,109620.0,0.75763879]
[1758969220773,0.18243181,109630.0,109620.0,0.78508946]
[1758969221130,0.18243181,109630.0,109620.0,0.76058879]
[1758969221554,0.18243181,109630.0,109620.0,0.78803946]
[1758969221754,0.18243181,109630.0,109620.0,0.78503946]
[1758969222462,0.18243181,109630.0,109620.0,0.50027946]
[1758969222672,0.18243181,109630.0,109620.0,0.78795946]
[1758969227086,0.76578301,109640.0,109620.0,0.50327946]
[1758969227281,0.78075646,109640.0,109630.0,0.28763]
[1758969227522,0.89392386,109640.0,109630.0,0.30481237]
[1758969227804,0.89392386,109640.0,109630.0,0.35679304]
[1758969228210,0.90248258,109640.0,109630.0,0.35679304]
[1758969228414,0.90248258,109640.0,109630.0,0.07211304]
[1758969228616,0.90248258,109640.0,109630.0,0.35683304]
[1758969228843,0.90548258,109640.0,109630.0,0.35683304]
[1758969229043,0.90348258,109640.0,109630.0,0.35683304]
[1758969229228,0.90648258,109640.0,109630.0,0.35683304]
[1758969229412,0.90548258,109640.0,109630.0,0.35683304]
[1758969229810,0.90648258,109640.0,109630.0,0.07211304]
[1758969230141,0.90648258,109640.0,109630.0,0.35384304]
[1758969232475,0.45537987,109640.0,109630.0,0.38707304]
[1758969232694,0.44682115,109640.0,109630.0,0.38707304]
[1758969232897,0.44682115,109640.0,109630.0,0.75722494]
[1758969233099,0.67607644,109640.0,109630.0,0.75722494]
[1758969233540,0.66689078,109640.0,109630.0,0.75722494]
[1758969233869,0.43763549,109640.0,109630.0,0.75722494]
[1758969234002,0.66689078,109640.0,109630.0,0.47254494]
[1758969234217,0.43763549,109640.0,109630.0,0.75770494]
[1758969234480,0.66589078,109640.0,109630.0,0.75770494]
[1758969234672,0.66289078,109640.0,109630.0,0.75770494]
[1758969234836,0.65647493,109640.0,109630.0,0.75770494]
[1758969235062,0.65647493,109640.0,109630.0,0.76070494]
[1758969235933,0.42721964,109640.0,109630.0,0.76070494]
[1758969236174,0.65647493,109640.0,109630.0,0.76070494]
[1758969238530,0.47939241,109640.0,109630.0,0.76070494]
[1758969239109,0.47939241,109640.0,109630.0,0.76066494]
[1758969240387,0.29697724,109640.0,109630.0,0.94309675]
[1758969241200,0.06772195,109640.0,109630.0,0.94309675]
[1758969241399,0.29697724,109640.0,109630.0,0.94309675]
[1758969242077,0.06772195,109640.0,109630.0,0.94309675]
[1758969242251,0.29697724,109640.0,109630.0,0.94309675]
[1758969243401,0.06772195,109640.0,109630.0,0.94309675]
[1758969244659,0.25013712,109640.0,109630.0,0.94309675]
[1758969244871,0.06772195,109640.0,109630.0,0.94309675]
[1758969245641,0.25013712,109640.0,109630.0,0.94309675]
[1758969246340,0.25013712,109640.0,109630.0,0.76066494]
[1758969246535,0.06772195,109640.0,109630.0,0.94309675]
[1758969246874,0.25013712,109640.0,109630.0,0.76066494]
[1758969247084,0.47939241,109640.0,109630.0,0.76066494]
[1758969248299,0.47939241,109640.0,109630.0,0.47554494]
[1758969248507,0.47939241,109640.0,109630.0,0.76054494]
[1758969249053,0.47939241,109640.0,109630.0,0.47554494]
[1758969249465,0.47939241,109640.0,109630.0,0.76046494]
[1758969251465,0.47939241,109640.0,109630.0,0.47554494]
[1758969251694,0.47939241,109640.0,109630.0,0.76042494]
[1758969253345,0.06772195,109640.0,109630.0,0.94285675]
[1758969254176,0.29697724,109640.0,109630.0,0.94285675]
[1758969254847,0.29697724,109640.0,109630.0,0.93985675]
[1758969255084,0.29697724,109640.0,109630.0,0.94885675]
[1758969255500,0.06772195,109640.0,109630.0,0.94885675]
[1758969255711,0.06772195,109640.0,109630.0,1.17811204]
[1758969256343,0.06772195,109640.0,109630.0,1.16911204]
[1758969256786,0.06772195,109640.0,109630.0,1.18611204]
[1758969257330,0.06772195,109640.0,109630.0,1.18411204]
[1758969258175,0.06772195,109640.0,109630.0,1.18711204]
[1758969260448,0.06772195,109640.0,109630.0,0.95785675]
[1758969260915,0.06772195,109640.0,109630.0,1.18711204]
[1758969271087,0.06772195,109640.0,109630.0,1.23711204]
[1758969273250,0.06772195,109640.0,109630.0,1.00785675]
[1758969273671,0.06772195,109640.0,109630.0,1.23711204]
[1758969275168,0.06772195,109640.0,109630.0,1.00785675]
[1758969275351,0.06772195,109640.0,109630.0,1.23711204]
[1758969275726,0.06772195,109640.0,109630.0,1.33391204]
[1758969276326,0.06772195,109640.0,109630.0,1.33399204]
[1758969276745,0.06772195,109640.0,109630.0,0.95223204]
[1758969277258,0.06772195,109640.0,109630.0,1.33399204]
[1758969278043,0.06772195,109640.0,109630.0,0.95223204]
[1758969278220,0.06772195,109640.0,109630.0,1.33399204]
[1758969278435,0.06772195,109640.0,109630.0,1.10473675]
[1758969278658,0.06772195,109640.0,109630.0,1.33399204]
[1758969282182,0.06772195,109640.0,109630.0,1.10473675]
[1758969282388,0.06772195,109640.0,109630.0,1.33399204]
[1758969283482,0.06772195,109640.0,109630.0,1.59619204]
[1758969284695,0.06772195,109640.0,109630.0,1.36693675]
[1758969284899,0.06772195,109640.0,109630.0,1.59619204]
[1758969287033,0.06772195,109640.0,109630.0,0.98517675]
[1758969287238,0.06772195,109640.0,109630.0,1.21443204]
[1758969288030,0.06772195,109640.0,109630.0,1.59695204]
[1758969288238,0.06772195,109640.0,109630.0,1.36769675]
[1758969288426,0.06772195,109640.0,109630.0,1.59695204]
[1758969291105,0.06772195,109640.0,109630.0,1.59645204]
[1758969292709,0.06772195,109640.0,109630.0,1.36719675]
[1758969293317,0.06772195,109640.0,109630.0,1.36711675]
[1758969293523,0.06772195,109640.0,109630.0,0.98467675]
[1758969293779,0.06772195,109640.0,109630.0,0.97947675]
[1758969293989,0.06772195,109640.0,109630.0,1.36187675]
[1758969294487,0.25013712,109640.0,109630.0,1.17944494]
[1758969295003,0.06772195,109640.0,109630.0,1.36187675]
[1758969295209,0.06772195,109640.0,109630.0,1.09967675]
[1758969295661,0.64017707,109650.0,109640.0,0.0601819]
[1758969295853,0.616472,109650.0,109640.0,0.40812446]
[1758969296073,0.616472,109650.0,109640.0,0.43174446]
[1758969296290,0.6258432,109650.0,109640.0,0.4591891]
[1758969296979,0.32024524,109650.0,109640.0,0.4591891]
[1758969297228,0.6258432,109650.0,109640.0,0.4591891]
[1758969297878,0.6258432,109650.0,109640.0,0.4611891]
[1758969298823,0.6258432,109650.0,109640.0,0.44409343]
[1758969299112,0.6258432,109650.0,109640.0,0.44401343]
[1758969299447,0.6258432,109650.0,109640.0,0.15669343]
[1758969299697,0.6258432,109650.0,109640.0,0.44393343]
[1758969300256,0.6258432,109650.0,109640.0,0.15669343]
[1758969300655,0.6258432,109650.0,109640.0,0.53897343]
[1758969301038,0.6258432,109650.0,109640.0,0.15669343]
[1758969301252,0.6258432,109650.0,109640.0,0.53893343]
[1758969302828,0.32024524,109650.0,109640.0,0.53893343]
[1758969303036,0.6258432,109650.0,109640.0,0.53893343]
[1758969305130,0.32024524,109650.0,109640.0,0.53893343]
[1758969305337,0.6258432,109650.0,109640.0,0.53893343]
[1758969307887,0.43173105,109650.0,109640.0,0.53893343]
[1758969309199,0.12613309,109650.0,109640.0,0.53893343]
[1758969309431,0.43173105,109650.0,109640.0,0.53893343]
[1758969312900,0.43173105,109650.0,109640.0,0.54097343]
[1758969313611,0.43173105,109650.0,109640.0,0.53893343]
[1758969314118,0.12613309,109650.0,109640.0,0.44365343]
[1758969314373,0.43173105,109650.0,109640.0,0.44365343]
[1758969314587,0.43173105,109650.0,109640.0,0.44361343]
[1758969314887,0.12613309,109650.0,109640.0,0.44361343]
[1758969315120,0.43173105,109650.0,109640.0,0.44357343]
[1758969315278,0.44603859,109650.0,109640.0,0.44357343]
[1758969317307,0.43173105,109650.0,109640.0,0.44357343]
[1758969317519,0.12613309,109650.0,109640.0,0.44357343]
[1758969317727,0.43173105,109650.0,109640.0,0.44357343]
[1758969318896,0.12613309,109650.0,109640.0,0.44357343]
[1758969319099,0.43173105,109650.0,109640.0,0.44357343]
[1758969320231,0.44603871,109650.0,109640.0,0.44357343]
[1758969323349,0.45246402,109650.0,109640.0,0.44357343]
[1758969323740,1.70471502,109650.0,109640.0,0.70993464]
[1758969324708,1.71328138,109650.0,109640.0,0.05565]
[1758969324908,1.71328138,109650.0,109640.0,0.34245]
[1758969325116,1.69897372,109650.0,109640.0,0.34245]
[1758969326962,1.69897372,109650.0,109640.0,0.34241]
[1758969327423,1.69254841,109650.0,109640.0,0.34241]
[1758969327629,1.69896812,109650.0,109640.0,0.34241]
[1758969328321,1.71327684,109650.0,109640.0,0.34241]
[1758969329533,2.0188748,109650.0,109640.0,0.34241]
[1758969331334,2.01030844,109650.0,109640.0,0.34241]
[1758969336121,2.01030367,109650.0,109640.0,0.34241]
[1758969340484,2.01030359,109650.0,109640.0,0.34241]
[1758969340900,1.39910767,109650.0,109640.0,0.34439]
[1758969341118,0.27113267,109650.0,109640.0,0.34742]
[1758969341338,0.14685667,109650.0,109640.0,0.34742]
[1758969341550,0.03017971,109650.0,109640.0,0.74554926]
[1758969341764,0.19185467,109650.0,109640.0,0.74554926]
[1758969341986,0.00945613,109650.0,109640.0,0.77570116]
[1758969342191,0.00945613,109650.0,109640.0,0.80314777]
[1758969342397,0.49745263,109650.0,109640.0,0.74501851]
[1758969342604,0.19185467,109650.0,109640.0,0.74501851]
[1758969342812,0.49745263,109650.0,109640.0,0.74501851]
[1758969343224,0.19185467,109650.0,109640.0,0.74501851]
[1758969343636,0.49745263,109650.0,109640.0,0.74501851]
[1758969344048,0.19185467,109650.0,109640.0,0.74501851]
[1758969344398,0.49745263,109650.0,109640.0,0.74501851]
[1758969350219,0.49745263,109650.0,109640.0,0.74580851]
[1758969350220,0.30559796,109650.0,109640.0,0.74580851]
[1758969350438,0.4879965,109650.0,109640.0,0.74580851]
[1758969350626,0.50230456,109650.0,109640.0,0.74580851]
[1758969351048,0.50230456,109650.0,109640.0,0.74776851]
[1758969352154,0.50230456,109650.0,109640.0,0.75100851]
[1758969352797,0.65530996,109650.0,109640.0,0.75100851]
[1758969353963,0.67172929,109650.0,109640.0,0.75100851]
[1758969355921,0.21312593,109650.0,109640.0,0.75100851]
[1758969356137,0.67172929,109650.0,109640.0,0.75100851]
[1758969359281,0.67814625,109650.0,109640.0,0.75100851]
[1758969361556,0.44884457,109650.0,109640.0,0.75100851]
[1758969363006,0.27412,109660.0,109650.0,0.0301519]
[1758969363230,0.13620959,109660.0,109650.0,2.33685263]
[1758969363446,0.2504,109680.0,109670.0,0.68254717]
[1758969363662,0.2504,109690.0,109680.0,0.68253055]
[1758969363880,0.25053963,109690.0,109680.0,1.05331445]
[1758969364093,0.1094195,109690.0,109680.0,2.2163438]
[1758969364317,0.2504,109700.0,109690.0,0.73251392]
[1758969364538,0.22441578,109710.0,109700.0,2.10830738]
[1758969364835,0.22488111,109710.0,109700.0,0.90133726]
[1758969365026,0.03523098,109710.0,109700.0,2.31247125]
[1758969365247,0.02120499,109710.0,109700.0,2.27614734]
[1758969365458,1.06914563,109720.0,109710.0,0.73148068]
[1758969365688,1.06914563,109720.0,109710.0,2.12425178]
[1758969366111,1.04243978,109720.0,109710.0,1.44479931]
[1758969366564,1.06696978,109720.0,109710.0,1.44479931]
[1758969367010,1.06696978,109720.0,109710.0,1.88969763]
[1758969367234,1.06696978,109720.0,109710.0,2.21403931]
[1758969367889,1.06796978,109720.0,109710.0,2.22603931]
[1758969368103,1.06801628,109720.0,109710.0,1.53813427]
[1758969368318,1.06801628,109720.0,109710.0,1.99673763]
[1758969368731,1.06801628,109720.0,109710.0,1.99237763]
[1758969368951,1.05317908,109720.0,109710.0,2.04237763]
[1758969369382,1.05317908,109720.0,109710.0,1.58377427]
[1758969369608,1.05317908,109720.0,109710.0,2.27167931]
[1758969371412,0.83826397,109720.0,109710.0,1.58377427]
[1758969371844,0.83826397,109720.0,109710.0,2.02541661]
[1758969372072,0.83826397,109720.0,109710.0,1.50225661]
[1758969372314,0.83826397,109720.0,109710.0,2.02729661]
[1758969372930,0.83826397,109720.0,109710.0,1.25153661]
[1758969373130,0.83826397,109720.0,109710.0,2.02725661]
[1758969373713,0.83819286,109720.0,109710.0,2.02725661]
[1758969373919,0.83819286,109720.0,109710.0,1.42302471]
[1758969374137,0.83819286,109720.0,109710.0,1.99702471]
[1758969374344,0.83819286,109720.0,109710.0,2.02444237]
[1758969374734,0.83819286,109720.0,109710.0,2.05459427]
[1758969376035,0.83819286,109720.0,109710.0,1.95559427]
[1758969376249,0.83819286,109720.0,109710.0,2.05459427]
[1758969376872,0.83819286,109720.0,109710.0,1.58753834]
[1758969377081,0.83819286,109720.0,109710.0,2.05452646]
[1758969377312,0.83819286,109720.0,109710.0,2.00452646]
[1758969377536,0.83819286,109720.0,109710.0,2.05452646]
[1758969377751,0.83819286,109720.0,109710.0,1.82522478]
[1758969378835,0.83819286,109720.0,109710.0,1.5959231]
[1758969379040,0.83819286,109720.0,109710.0,1.82522478]
[1758969381051,0.83819286,109720.0,109710.0,1.5959231]
[1758969381250,0.83225794,109720.0,109710.0,1.5959231]
[1758969381460,0.83225794,109720.0,109710.0,1.82522478]
[1758969382275,0.83225794,109720.0,109710.0,1.5959231]
[1758969382486,0.83225794,109720.0,109710.0,1.82522478]
[1758969385137,0.83225794,109720.0,109710.0,1.77522478]
[1758969385341,0.83225794,109720.0,109710.0,1.82522478]
[1758969386270,0.82335569,109720.0,109710.0,1.82522478]
[1758969388163,0.82335569,109720.0,109710.0,1.81684002]
[1758969389617,0.82335569,109720.0,109710.0,1.58753834]
[1758969389831,0.82335569,109720.0,109710.0,1.81684002]
[1758969390244,0.82335569,109720.0,109710.0,1.58753834]
[1758969390376,0.82335569,109720.0,109710.0,1.81684002]
[1758969392056,0.82335569,109720.0,109710.0,1.82530646]
[1758969392261,0.8085186,109720.0,109710.0,1.82530646]
[1758969393078,0.78774667,109720.0,109710.0,1.82530646]
[1758969393290,0.76448444,109720.0,109710.0,2.05460814]
[1758969393536,0.76448444,109720.0,109710.0,1.59600478]
[1758969393692,0.76448444,109720.0,109710.0,1.82530646]
[1758969393934,0.75807248,109720.0,109710.0,1.81684002]
[1758969394341,0.76448936,109720.0,109710.0,1.81684002]
[1758969394966,0.76448936,109720.0,109710.0,1.58753834]
[1758969395190,0.76448936,109720.0,109710.0,1.81684002]
[1758969395587,0.76448936,109720.0,109710.0,1.58753834]
[1758969395784,0.76448936,109720.0,109710.0,1.81684002]
[1758969396629,0.76448936,109720.0,109710.0,1.72108002]
[1758969396812,0.76448936,109720.0,109710.0,1.81604002]
[1758969397383,0.76448936,109720.0,109710.0,1.58673834]
[1758969397792,0.76448936,109720.0,109710.0,2.0453417]
[1758969398266,0.76448936,109720.0,109710.0,1.2705017]
[1758969398415,0.76448936,109720.0,109710.0,2.0453817]
[1758969398612,0.58488783,109720.0,109710.0,2.0452217]
[1758969398984,0.58488783,109720.0,109710.0,1.2705017]
[1758969399202,0.58488783,109720.0,109710.0,2.0452217]
[1758969402139,0.57847095,109720.0,109710.0,2.0452217]
[1758969402578,0.57847095,109720.0,109710.0,1.96780404]
[1758969402839,0.58047095,109720.0,109710.0,2.01780404]
[1758969403090,0.58488881,109720.0,109710.0,2.01780404]
[1758969403318,0.59010881,109720.0,109710.0,0.96378236]
[1758969403563,0.59010881,109720.0,109710.0,1.26447046]
[1758969403765,0.59010881,109720.0,109710.0,0.65532878]
[1758969403992,0.59010881,109720.0,109710.0,1.73794236]
[1758969404198,0.59010881,109720.0,109710.0,0.91478236]
[1758969404418,0.59010881,109720.0,109710.0,0.60532878]
[1758969404629,0.59010881,109720.0,109710.0,1.22891046]
[1758969405035,0.59010881,109720.0,109710.0,1.25906236]
[1758969405436,0.59010881,109720.0,109710.0,1.02976068]
[1758969405641,0.58910881,109720.0,109710.0,1.25406236]
[1758969405846,0.58910881,109720.0,109710.0,1.20506236]
[1758969406050,0.59010881,109720.0,109710.0,1.25206236]
[1758969406463,0.59010881,109720.0,109710.0,1.25198236]
[1758969406675,0.59010881,109720.0,109710.0,1.30098236]
[1758969406884,0.59010881,109720.0,109710.0,1.02268068]
[1758969407110,0.59010881,109720.0,109710.0,1.07168068]
[1758969407322,0.59010881,109720.0,109710.0,1.30098236]
[1758969407738,0.59010881,109720.0,109710.0,1.07168068]
[1758969407946,0.59010881,109720.0,109710.0,1.25198236]
[1758969408176,0.59010218,109720.0,109710.0,1.02268068]
[1758969408380,0.59010218,109720.0,109710.0,1.25198236]
[1758969408583,0.59010218,109720.0,109710.0,1.30098236]
[1758969409191,0.59010218,109720.0,109710.0,0.67748068]
[1758969409401,0.81940386,109720.0,109710.0,0.5012219]
[1758969409596,0.81940386,109720.0,109710.0,0.07703]
[1758969409808,1.03190929,109720.0,109710.0,0.37611]
[1758969410023,0.84962712,109720.0,109710.0,0.37611]
[1758969410191,0.84962712,109720.0,109710.0,0.71611]
[1758969410411,0.84962712,109720.0,109710.0,0.37611]
[1758969410793,1.03190929,109720.0,109710.0,0.68011]
[1758969410996,1.03090929,109720.0,109710.0,0.37003]
[1758969411213,1.03190929,109720.0,109710.0,0.70911]
[1758969411831,1.03090929,109720.0,109710.0,0.69911]
[1758969412091,1.03090929,109720.0,109710.0,0.66911]